Cogmind - Beta 13 @@@ ROGUE MODE // 2024.03.03 @ 13:08:22 // Winter2019/RPGLIKE Player: surfboardsofcanada Result: Destroyed by G-47 Trooper with Particle Gun Performance ------------- Evolutions (2) 1000 Regions Visited (5) 1000 Robots Destroyed (23) 115 Value Destroyed (524) 524 Prototype IDs (1) 20 Alien Tech Used (0) 0 Bonus (0) 0 TOTAL SCORE: 2659 Bonus ------- None Cogmind --------- Core Integrity 0/850 Matter 150/300 Energy 119/140 System Corruption 0% Temperature Cool (9) Movement Walking (120) Location -8/Storage Parts ------- > --- POWER (2) -------- Light Deuterium Engine > --- PROPULSION (4) --- Carbon-fiber Leg Carbon-fiber Leg Carbon-fiber Leg Carbon-fiber Leg > --- UTILITY (3) ------ Targeting Computer Targeting Computer > --- WEAPON (2) ------- Shock Rifle Plasma Cutter > --- INVENTORY (3) ---- Trap Extractor (0/4) Field Laser Gauss Rifle Peak State ------------ > --- POWER ------------ Light Deuterium Engine > --- PROPULSION ------- Advanced Treads Advanced Treads Advanced Treads Advanced Treads > --- UTILITY ---------- Targeting Computer Targeting Computer > --- WEAPON ----------- Shock Rifle Gauss Rifle > --- INVENTORY -------- (None) [Rating: 24] Favorites ----------- Power Light Ion Engine Engine Light Ion Engine Power Core Light Nuclear Core Propulsion Flight Unit Treads Advanced Treads Leg Aluminum Leg Hover Unit Hover Unit Flight Unit Flight Unit Utility Targeting Computer Device Structural Scanner Processor Targeting Computer Weapon EM Pulse Gun Energy Gun EM Pulse Gun Ballistic Gun Gauss Rifle Special Weapon Plasma Cutter Slashing Weapon Great Axe Special Melee Weapon Datajack Build | -11 -10 -9 -9 -8 -8 ------- Run | Yrd Mat Mat Min Mat Sto Slots Evolved 7 | 2 . 2 2 1 . Power 1 | . . . 1 . . Propulsion 3 | 1 . 1 . 1 . Utility 2 | 1 . 1 . . . Weapon 1 | . . . 1 . . Parts Attached 39 | 4 7 6 3 7 12 Power 5 | 1 1 . 2 . 1 Engine 4 | 1 . . 2 . 1 Core 1 | . 1 . . . . Reactor . | . . . . . . Propulsion 18 | 2 2 4 . 2 8 Treads 4 | . . . . . 4 Leg 6 | 2 . . . . 4 Wheel . | . . . . . . Hover 3 | . 2 1 . . . Flight 5 | . . 3 . 2 . Utility 3 | . 2 1 . . . Device 1 | . . 1 . . . Storage . | . . . . . . Processor 2 | . 2 . . . . Hackware . | . . . . . . Protection . | . . . . . . Artifact . | . . . . . . Weapon 13 | 1 2 1 1 5 3 Energy Gun 6 | 1 1 1 . 2 1 Energy Cannon . | . . . . . . Ballistic Gun 1 | . . . . . 1 Ballistic Cannon . | . . . . . . Launcher . | . . . . . . Special Weapon 3 | . . . 1 1 1 Impact Weapon . | . . . . . . Slashing Weapon 2 | . . . . 2 . Piercing Weapon . | . . . . . . Special Melee Weapon 1 | . 1 . . . . Unidentified Prototypes 1 | . . . . 1 . Corrupted Parts 1 | . . 1 . . . System Corruption 1 | . . 1 . . . Parts Lost 3 | . . . 2 1 . Power 1 | . . . 1 . . Propulsion 2 | . . . 1 1 . Utility . | . . . . . . Weapon . | . . . . . . Highest Loss Streak 2 | . . . 2 1 . To Critical Strikes . | . . . . . . Average Slot Usage (%) 84 | . 73 100 92 88 69 Engine 6 | . 10 . 7 15 5 Core 5 | . 5 12 9 . . Treads 4 | . . . . . 21 Leg 9 | . 28 . . . 11 Hover 3 | . 4 8 . . . Flight 16 | . . 28 32 30 . Device 5 | . . 11 10 9 . Processor 17 | . 7 25 21 18 18 Energy Gun 9 | . 15 12 1 5 6 Ballistic Gun 1 | . . . . . 5 Special Weapon 2 | . . . 8 5 1 Naked Turns . | . . . . . . Heaviest Build 15 | 5 7 9 10 15 12 Greatest Support 93 | 20 20 18 12 21 93 Greatest Overweight (x) 1 | . 1 1 . . . Average Overweight (x) . | . . . . . . Largest Inventory Capacity 3 | 3 3 3 3 3 3 Average Capacity 3 | 3 3 3 3 3 3 Most Carried 3 | . 3 3 3 3 3 Average Carried 1 | . 1 2 2 1 2 Final Capacity 3 | 3 3 3 3 3 3 Final Carried 3 | . 3 3 3 2 3 Class Distribution -------------------- 53% | Mutant 31% | Scavenger-Mutant 11% | Scavenger-Sprinter 4% | Gladiator Dominant Class ---------------- Mutant | -10/Materials Scavenger-Mutant | -9/Materials Scavenger-Mutant | -9/Mines Scavenger-Sprinter | -8/Materials Mutant | -8/Storage Resources | -11 -10 -9 -9 -8 -8 ----------- Run | Yrd Mat Mat Min Mat Sto Matter Collected 448 | 240 30 100 38 40 . Remotely . | . . . . . . Salvage Created 656 | . 75 307 109 84 81 Parts 48 | . 2 26 16 2 2 Haulers Intercepted . | . . . . . . Recyclers Shooed . | . . . . . . Parts Field Recycled . | . . . . . . Retrieved Matter . | . . . . . . Parts Self-Destructed . | . . . . . . Prevented . | . . . . . . Kills | -11 -10 -9 -9 -8 -8 ------- Run | Yrd Mat Mat Min Mat Sto Combat Hostiles Destroyed 23 | . 1 11 8 2 1 Guns 13 | . 1 10 . 1 1 Cannons 9 | . . . 8 1 . Classes Destroyed 4 | . 1 2 . 1 . Swarmer 15 | . . 7 8 . . Grunt 5 | . 1 2 . 1 1 Sentry 2 | . . 2 . . . Hunter 1 | . . . . 1 . Best Kill Streak 5 | . 1 5 3 1 1 Combat Bots Only 5 | . 1 5 3 1 1 Max Kills in Single Turn 1 | . 1 1 1 1 1 Gunslinging . | . . . . . . Exploded . | . . . . . . Melee . | . . . . . . Uniques/NPCs Destroyed . | . . . . . . Combat | -11 -10 -9 -9 -8 -8 -------- Run | Yrd Mat Mat Min Mat Sto Hostile Shots Fired 168 | . 14 52 35 41 26 Missed 52 | . 5 17 11 15 4 Damage Taken 1699 | . 132 398 277 524 368 Core 1416 | . 103 317 234 468 294 Absorbed by Shields . | . . . . . . Redirected to Core 959 | . 103 269 143 190 254 Ignored by Resistances 54 | . . . . 16 38 Core Remaining (%) 89 | 100 100 . 69 . . Volleys Fired 75 | . 7 38 15 7 8 Largest 2 | . 1 1 1 2 2 Hottest 78 | . 40 40 20 76 78 Shots Fired 87 | . 7 38 15 11 16 Gun 62 | . 7 38 . 7 10 Cannon . | . . . . . . Launcher . | . . . . . . Special 25 | . . . 15 4 6 Kinetic 2 | . . . . . 2 Thermal 30 | . . . 15 9 6 Explosive . | . . . . . . Electromagnetic 55 | . 7 38 . 2 8 Robot Hit Streak 20 | . 5 20 7 10 4 Robot Miss Streak 2 | . 1 2 1 1 1 Penetration Max . | . . . . . . Secondary Targets . | . . . . . . Shots Hit Robots 72 | . 8 33 11 12 8 Core Hits 34 | . 3 13 8 6 4 Critical Kills . | . . . . . . Critical Parts Destroyed . | . . . . . . Critical Strikes 3 | . . 1 1 1 . Burn 1 | . . . . 1 . Corrupt 1 | . . 1 . . . Sever 1 | . . . 1 . . Melee Attacks 12 | . 2 . . 10 . Impact . | . . . . . . Slashing 10 | . . . . 10 . Piercing . | . . . . . . Sneak Attacks . | . . . . . . Combat Hostiles . | . . . . . . Follow-up Attacks 2 | . . . . 2 . Damage Inflicted 1059 | . 78 450 129 258 144 Guns 679 | . 78 406 . 107 88 Cannons . | . . . . . . Explosions 44 | . . 44 . . . Melee 122 | . . . . 122 . Ramming 6 | . . . . 6 . Kinetic . | . . . . . . Thermal 323 | . . 44 129 94 56 Explosive . | . . . . . . Electromagnetic 608 | . 78 406 . 36 88 Impact . | . . . . . . Slashing 122 | . . . . 122 . Piercing . | . . . . . . Highest Corruption 2 | . 2 1 1 . . Average Corruption 1 | . 2 1 1 . . Corruption Purged . | . . . . . . Corruption Blocked . | . . . . . . Effects 2 | . . . 2 . . Message Errors 1 | . . . 1 . . Matter Fused 1 | . . . 1 . . Overload Shots . | . . . . . . Overflow Damage 13 | . . . . 13 . Projectiles . | . . . . . . Explosions . | . . . . . . Melee 13 | . . . . 13 . Knockbacks . | . . . . . . Impact . | . . . . . . Kinetic . | . . . . . . Secondary . | . . . . . . Self-Inflicted Damage 3 | . . . . 3 . Shots . | . . . . . . Rammed 1 | . . . . 1 . Targets Rammed 1 | . . . . 1 . Kicked . | . . . . . . Crushed . | . . . . . . Highest Temperature 210 | . 45 167 2 210 . Average Temperature 78 | . 26 66 2 128 . Received Heat Transfer 429 | . 96 108 . 54 171 Siege Activations . | . . . . . . Robots Corrupted 1 | . . 1 . . . Combat Hostiles 1 | . . 1 . . . Parts Fried 4 | . 1 3 . . . Impact Corruptions . | . . . . . . Robots Melted . | . . . . . . Combat Hostiles . | . . . . . . Parts Melted 3 | . . . 2 1 . Heat Transferred 1012 | . . 50 444 333 185 Parts Sabotaged . | . . . . . . Parts Stolen . | . . . . . . Parts Stripped . | . . . . . . Power Chain Reactions 1 | . . 1 . . . Alert | -11 -10 -9 -9 -8 -8 ------- Run | Yrd Mat Mat Min Mat Sto Peak Influence 433 | . 90 433 383 164 108 Initial 168 | . . 37 168 144 39 Average 131 | . 44 228 273 105 57 Maximum Alert Level 2 | . . 2 1 . . Low Security (%) 73 | 100 100 40 15 100 100 Level 1 25 | . . 55 84 . . Level 2 1 | . . 4 . . . Level 3 . | . . . . . . Level 4 . | . . . . . . Level 5 . | . . . . . . High Security . | . . . . . . Max Security . | . . . . . . Squads Dispatched 3 | . . 1 . 2 . Investigation 2 | . . 1 . 1 . Extermination . | . . . . . . Reinforcement 1 | . . . . 1 . Assault . | . . . . . . Garrison . | . . . . . . Intercept . | . . . . . . Searches Triggered . | . . . . . . Construction Impeded . | . . . . . . Haulers Reinforced . | . . . . . . Active Scanning Responses . | . . . . . . Cargo Convoy Interrupts . | . . . . . . Stealth | -11 -10 -9 -9 -8 -8 --------- Run | Yrd Mat Mat Min Mat Sto Distress Signals 3 | . . 2 . 1 . Communications Jammed . | . . . . . . Distress Signals . | . . . . . . Times Spotted 51 | . 7 19 12 8 5 Peak Tracking Total 6 | . 3 6 4 6 5 Tactical Retreats 4 | . . 2 1 . 1 Traps | -11 -10 -9 -9 -8 -8 ------- Run | Yrd Mat Mat Min Mat Sto Traps Triggered 2 | . 1 1 . . . Indirectly . | . . . . . . Trap Hack Attempts . | . . . . . . Triggered . | . . . . . . Disarmed . | . . . . . . Reprogrammed . | . . . . . . Reused . | . . . . . . Traps Extracted . | . . . . . . Installed . | . . . . . . Triggered . | . . . . . . Machines | -11 -10 -9 -9 -8 -8 ---------- Run | Yrd Mat Mat Min Mat Sto Machines Disabled 3 | . . 2 . . 1 Max in Single Turn 1 | . . 1 . . 1 Machines Repaired . | . . . . . . Machines Dismantled 1 | . . . . 1 . Machines Sabotaged . | . . . . . . Overloaded Fab Kills . | . . . . . . Hacking | -11 -10 -9 -9 -8 -8 --------- Run | Yrd Mat Mat Min Mat Sto Machines Accessed 5 | . 1 1 . 2 1 Terminals 4 | . . 1 . 2 1 Fabricators . | . . . . . . Repair Stations . | . . . . . . Recycling Units 1 | . 1 . . . . Scanalyzers . | . . . . . . Garrison Access . | . . . . . . Total Hacks 8 | . 1 1 . 5 1 Successful 4 | . 1 1 . 1 1 Failed 4 | . . . . 4 . Catastrophic . | . . . . . . Database Lockouts . | . . . . . . Manual . | . . . . . . Terminals 7 | . . 1 . 5 1 Fabricators . | . . . . . . Repair Stations . | . . . . . . Recycling Units 1 | . 1 . . . . Scanalyzers . | . . . . . . Garrison Access . | . . . . . . Terminal Hacks 3 | . . 1 . 1 1 Open Door 1 | . . . . . 1 Unreport Threat 1 | . . . . 1 . Locate Traps 1 | . . 1 . . . Fabricator Hacks . | . . . . . . Repair Station Hacks . | . . . . . . Recycling Unit Hacks 1 | . 1 . . . . Report Inventory 1 | . 1 . . . . Scanalyzer . | . . . . . . Garrison Access Hacks . | . . . . . . Unauthorized Hacks . | . . . . . . Terminals . | . . . . . . Fabricators . | . . . . . . Repair Stations . | . . . . . . Recycling Units . | . . . . . . Scanalyzers . | . . . . . . Garrison Access . | . . . . . . Data Cores Recovered . | . . . . . . Used . | . . . . . . Hacking Detections 4 | . 1 . . 2 1 Full Trace Events 1 | . . . . 1 . Feedback Events . | . . . . . . Feedback Blocked . | . . . . . . Robot Schematics Acquired . | . . . . . . Robots Built . | . . . . . . Authchips . | . . . . . . Time . | . . . . . . Total Robot Build Rating . | . . . . . . Part Schematics Acquired . | . . . . . . Parts Built . | . . . . . . Authchips . | . . . . . . Time . | . . . . . . Total Part Build Rating . | . . . . . . Parts Repaired . | . . . . . . Time . | . . . . . . Parts Recycled . | . . . . . . Recycled Matter . | . . . . . . Retrieved Matter . | . . . . . . Retrieved Components . | . . . . . . Parts Scanalyzed . | . . . . . . Part Schematics Acquired . | . . . . . . Parts Damaged . | . . . . . . Bothacking | -11 -10 -9 -9 -8 -8 ------------ Run | Yrd Mat Mat Min Mat Sto Used RIF Installer . | . . . . . . Robots Hacked 1 | . 1 . . . . Non-combat . | . . . . . . Combat 1 | . 1 . . . . Robot Hacks Applied 2 | . 2 . . . . parse_system 2 | . 2 . . . . Relay Couplers Released . | . . . . . . Fabnet Peak Effective % . | . . . . . . Robots Rewired . | . . . . . . Allies Hacked . | . . . . . . Hacks Repelled . | . . . . . . Allies | -11 -10 -9 -9 -8 -8 -------- Run | Yrd Mat Mat Min Mat Sto Total Allies . | . . . . . . Largest Group . | . . . . . . Highest-Rated Group . | . . . . . . Highest-Rated Ally . | . . . . . . Total Orders . | . . . . . . Ally Attacks . | . . . . . . Total Damage . | . . . . . . Kills . | . . . . . . Allies Corrupted . | . . . . . . Allies Melted . | . . . . . . Intel | -11 -10 -9 -9 -8 -8 ------- Run | Yrd Mat Mat Min Mat Sto Robot Analysis Total . | . . . . . . Derelict Logs Recovered . | . . . . . . Drone Launches . | . . . . . . Drone Recoveries . | . . . . . . Exploration | -11 -10 -9 -9 -8 -8 ------------- Run | Yrd Mat Mat Min Mat Sto Turns Passed 983 | 40 246 248 133 140 176 Spaces Moved 1032 | 33 188 367 183 164 97 Core 31 | 7 . . . 16 8 Treads 62 | . . . . . 62 Legs 196 | 26 143 . . . 27 Wheels . | . . . . . . Hover 120 | . 45 75 . . . Flight 623 | . . 292 183 148 . Fastest Speed 31 | 50 56 34 34 31 50 Average Speed 59 | 105 105 38 34 33 130 Slowest Speed 145 | 120 120 120 37 50 145 Overloaded Moves . | . . . . . . Propulsion Burnouts . | . . . . . . Robots Hopped 3 | . . . 2 1 . Cave-ins Triggered . | . . . . . . Exploration Rate (%) 22 | 4 39 27 41 14 11 Regions Visited 5 Branch Regions 2 Pre-discovered Areas 1 | . . . 1 . . Known Exits Taken . | . . . . . . Unknown Exits Taken 5 | 1 1 1 1 1 . Scrap Searched . | . . . . . . Spaces Dug . | . . . . . . Terrain Destroyed 1 | . . 1 . . . Melee . | . . . . . . Projectile . | . . . . . . AOE 1 | . . 1 . . . Terrain Rammed . | . . . . . . Walls Destroyed . | . . . . . . Machines Disabled . | . . . . . . Actions | -11 -10 -9 -9 -8 -8 --------- Run | Yrd Mat Mat Min Mat Sto Total 1255 | 36 228 435 220 212 124 Wait 22 | . 4 4 8 6 . Move 1021 | 32 187 366 178 161 97 Hop 3 | . . . 2 1 . Pick Up 22 | . 7 5 2 5 3 Fast Attach 26 | 4 5 5 1 2 9 Attach 9 | . . 1 1 5 2 Detach 3 | . 1 1 . 1 . Swap 4 | . 2 . 1 . 1 Drop 25 | . 7 8 1 5 4 Fire 75 | . 7 38 15 7 8 Melee 10 | . 2 . . 8 . Ram 1 | . . . . 1 . Kick . | . . . . . . Crush . | . . . . . . Escape Stasis . | . . . . . . Rewire . | . . . . . . Trap . | . . . . . . Miscellaneous 34 | . 6 7 11 10 . Route ------- -11/Scrapyard -10/Materials -9/Materials -9/Mines -8/Materials -8/Storage History --------- Turn | Location | Event 1 | -11/Scrapyard | Upgraded with Propulsion slot (x1) 1 | -11/Scrapyard | Upgraded with Utility slot (x1) 5 | -11/Scrapyard | Discovered new exit (range 18) 41 | -11/Scrapyard | Entered Materials 267 | -10/Materials | Discovered new exit (range 3) 287 | -10/Materials | Entered another Materials area 289 | -9/Materials | Reached level 2 290 | -9/Materials | Upgraded with Propulsion slot (x1) 290 | -9/Materials | Upgraded with Utility slot (x1) 313 | -9/Materials | Build established: Mutant 379 | -9/Materials | Discovered new exit (range 9) 458 | -9/Materials | Reached level 3 535 | -9/Materials | Entered Mines 579 | -9/Mines | Upgraded with Power slot (x1) 579 | -9/Mines | Upgraded with Weapon slot (x1) 586 | -9/Mines | Learned location of Storage (-8) 632 | -9/Mines | Discovered new exit (range 4) 638 | -9/Mines | Build established: Scavenger-Mutant 663 | -9/Mines | Assembled infested the area 668 | -9/Mines | Entered Materials 670 | -8/Materials | Reached level 4 671 | -8/Materials | Upgraded with Propulsion slot (x1) 696 | -8/Materials | Reached level 5 746 | -8/Materials | Discovered new exit (range 11) 799 | -8/Materials | Core integrity fell below 50% 808 | -8/Materials | Entered Storage 977 | -8/Storage | Core integrity fell below 20% 984 | -8/Storage | Destroyed by G-47 Trooper with Particle Gun Last Messages --------------- GOAL=ESCAPE 00811_ Connecting with Door Terminal... 00811_ Current location identified: Storage >>Open(Door) Sealed Heavy Doors opened. 00813_ Acquired Adv. Treads. 00860_ Slug penetrates Storage Shell. 00860_ Storage Shell breached. 00870_ Acquired Lgt. Deuterium Engine. 00873_ Acquired Plasma Cutter. 00877_ Acquired Trap Extractor. 00879_ Acquired Field Laser. 00882_ Extracted 12 energy. 00915_ Dropped Adv. Treads. 00921_ Acquired Carbon-fiber Leg. 00923_ Dropped Adv. Treads. 00926_ Acquired Carbon-fiber Leg. 00970_ G-47 Trooper suffers critical hit (Burn). 00979_ G-47 Trooper destroyed. 00980_ R-06 Scavenger collects Corrupted Aluminum Leg. Map ----- +----------------------------------------------------+ | ???????????????########## #???? | | ???????????????# # #???? | | ???????????????# # #???? | | ???????????????# # #???? | | ???????????????# """"" # #???? | | ?????????????????" ! + #???? | | ?????????????????"[!] " # #???? | | ?????????????????"""""" # #???? | | ?????????????????????? # #???? | | ????????????????????? # #???? | | ????????????????????##### #???? | | ????????????????????????# #???? | | ????????????????????????# #???? | | ???????????????????###### #???? | | ???????????????????# " #= #???? | | ???????????????????# ===+ #???? | | ???????????????????#==" # #???? | | ???????????????????####T# #???? | | ??????????????????????### #???? | | ????????????????????????#^ ^#???? | | ????????????????????????#^ #???? | | ????????????????????????# #???? | | ????????????????????????# #???? | | ????????????????????????# #???? | | ????????????????????????# lr#???? | | ????????????????????????#@ r#???? | | ???????????????####+#####%g #???? | | ??????????????# g #???? | | ??????? #???? | | ??????? #???? | | ?????????"" """ ###########???? | | ?????????????"""????????????????? | | ?????????????"??????????????????? | | ????????????????????????????????? | | ????????????????????????????????? | | ????????????????????????????????? | | ????????????????????????????????? | | ????????????????????????????????? | | ????????????????????????????????? | | ????????????????????????????????? | | ????????????????????????????????? | | ????????????????????????????????? | | ????????????????????????????????? | | ????????????????????????????????? | | ????????????????????????????????? | | ????????????????????????????????? | | ????????????????????????????????? | | ????????????????????????????????? | | ????????????????????????????????? | | ????????????????????????????????? | +----------------------------------------------------+ Best States ------------- Heat Dissipation 49 Energy Generation 24 Energy Capacity 185 Matter Stores 300 Matter Capacity 300 Sight Range 18 Robot Scan Range 2 Terrain Scan Density 110 Resistance: KI 10 Resistance: TH 10 Resistance: EX 10 Evasion (%) 63 Targeting Accuracy 10 Recoil Reduction 4 Item Schematics ----------------- None Robot Schematics ------------------ None Fabricated ------------ Nothing Alien Tech Used ----------------- None Achievements -------------- None Challenges ------------ None RPGLIKE | -11 -10 -9 -9 -8 -8 --------- Run | Yrd Mat Mat Min Mat Sto Levels Raised 4 | . . 2 . 2 . XP Earned 10350 | 3000 150 2875 1400 1750 1175 XP Spent 8995 | 2900 . 1700 1360 3035 . Upgrades 31 | 7 . 4 5 15 . Power Slot 1 | . . . 1 . . Propulsion Slot 3 | 1 . 1 . 1 . Utility Slot 2 | 1 . 1 . . . Weapon Slot 1 | . . . 1 . . Core Integrity 5 | . . . 2 3 . Heat Dissipation 4 | . . . . 4 . Energy Generation 1 | . . . 1 . . Mass Support 1 | . . . . 1 . Inventory Capacity 3 | 3 . . . . . Sight Range 2 | 2 . . . . . Sensor Range 1 | . . 1 . . . Terrain Scan Density 1 | . . 1 . . . KI Resistance % 2 | . . . . 2 . TH Resistance % 2 | . . . . 2 . EX Resistance % 2 | . . . . 2 . Protomatter Created 162 | . . 88 33 41 . Integrity Restored 566 | . 109 130 204 123 . Core 560 | . 103 130 204 123 . Parts 6 | . 6 . . . . Protomatter Decayed 9 | . . 9 . . . Game ------ Seed ZioniteTeslaDatajack Manual? 0 Play Time 00:27:38 Cumulative 18.7 hours Start 2024.03.03 @ 12:31:11 End 2024.03.03 @ 13:08:22 Sessions 3 Manual Loads 0 Difficulty Rogue Special Mode Winter2019/RPGLIKE Game No. 30 Rogue 19 Adventurer 11 Explorer 0 Win Type - Total 0 Types 0/0/0/0/0/0/0/0/0 Lore% 22 Gallery% 26 Achievement% 32 Wizard Run 0 Options --------- Layout 0 ASCII 0 Keyboard 0 Movement Mouse Keybinds 0 Fullscreen 2 Font 18/SmallcapsGlow Map View 76x50 Zoom Use 0% Tactical HUD 1 Map Filters NONE Filters NONE Steam 1 RUN: 7db27158-a80d-48b9-aa20-f0f5c36b06b7